[Event "Late-Titled-Tuesday-Blitz-April-30-2024"]
[Site "Chess.com"]
[Date "2024.04.30"]
[Round "6"]
[White "Byniolus"]
[Black "HajiyevKanan"]
[Result "1-0"]
[WhiteElo "2843"]
[BlackElo "2627"]
[TimeControl "180+1"]
[EndTime "15:06:27 PDT"]
[Termination "Byniolus won on time"]

1. d4 {[%clk 0:03:00.9]} 1... d5 {[%clk 0:02:55.6]} 2. Nf3 {[%clk 0:03:00.7]}
2... c6 {[%clk 0:02:56.3]} 3. Bf4 {[%clk 0:03:00.2]} 3... Nf6 {[%clk 0:02:56.9]}
4. e3 {[%clk 0:03:00.7]} 4... Bg4 {[%clk 0:02:56.7]} 5. c4 {[%clk 0:03:00.9]}
5... Qa5+ {[%clk 0:02:54.2]} 6. Nc3 {[%clk 0:02:59.1]} 6... Ne4 {[%clk
0:02:54.6]} 7. Qb3 {[%clk 0:02:58.7]} 7... Nxc3 {[%clk 0:02:34.8]} 8. bxc3
{[%clk 0:02:57.2]} 8... Bxf3 {[%clk 0:02:23.4]} 9. gxf3 {[%clk 0:02:58.1]} 9...
e6 {[%clk 0:02:18.4]} 10. Bd3 {[%clk 0:02:49.1]} 10... Nd7 {[%clk 0:02:13.7]}
11. O-O {[%clk 0:02:48.1]} 11... b6 {[%clk 0:01:53.5]} 12. cxd5 {[%clk 0:02:46]}
12... Qxd5 {[%clk 0:01:42.3]} 13. Be4 {[%clk 0:02:45.2]} 13... Qxb3 {[%clk
0:01:37.6]} 14. axb3 {[%clk 0:02:46.1]} 14... a5 {[%clk 0:01:07.6]} 15. b4
{[%clk 0:02:35.9]} 15... e5 {[%clk 0:00:55.9]} 16. Bg3 {[%clk 0:02:29.2]} 16...
Bd6 {[%clk 0:00:52.4]} 17. Bxc6 {[%clk 0:02:25.8]} 17... Rc8 {[%clk 0:00:52.2]}
18. Bxd7+ {[%clk 0:02:10.3]} 18... Kxd7 {[%clk 0:00:52.2]} 19. bxa5 {[%clk
0:02:09.6]} 19... bxa5 {[%clk 0:00:41.5]} 20. Rxa5 {[%clk 0:02:05.5]} 20... Rxc3
{[%clk 0:00:38.9]} 21. dxe5 {[%clk 0:02:02.6]} 21... Bc7 {[%clk 0:00:20.3]} 22.
Ra7 {[%clk 0:02:02.3]} 22... Rc8 {[%clk 0:00:14.6]} 23. Rd1+ {[%clk 0:01:58.3]}
23... Ke6 {[%clk 0:00:14.7]} 24. Ra6+ {[%clk 0:01:58.3]} 24... Ke7 {[%clk
0:00:07.8]} 25. f4 {[%clk 0:01:46.2]} 25... h6 {[%clk 0:00:05.1]} 26. f5 {[%clk
0:01:42.2]} 26... Bb8 {[%clk 0:00:05.4]} 27. Rb6 {[%clk 0:01:36.9]} 27... Rc1
{[%clk 0:00:04.3]} 28. Rb7+ {[%clk 0:01:30.6]} 28... Ke8 {[%clk 0:00:04.3]} 29.
Rxc1 {[%clk 0:01:30.6]} 29... Rxc1+ {[%clk 0:00:05]} 30. Kg2 {[%clk 0:01:31.5]}
30... Bc7 {[%clk 0:00:05.3]} 31. e6 {[%clk 0:01:24.8]} 31... Bxg3 {[%clk
0:00:06.1]} 32. exf7+ {[%clk 0:01:24.1]} 32... Kf8 {[%clk 0:00:06.9]} 33. hxg3
{[%clk 0:01:24.4]} 33... Rc5 {[%clk 0:00:06.5]} 34. e4 {[%clk 0:01:20.6]} 34...
Rc4 {[%clk 0:00:06.5]} 35. Kf3 {[%clk 0:01:19.7]} 35... h5 {[%clk 0:00:07.1]}
36. Kf4 {[%clk 0:01:19.2]} 36... h4 {[%clk 0:00:04.3]} 37. gxh4 {[%clk
0:01:19.3]} 37... Rc2 {[%clk 0:00:04.3]} 38. f3 {[%clk 0:01:18.1]} 38... Rh2
{[%clk 0:00:04.5]} 39. Ke5 {[%clk 0:01:15.3]} 39... Rc2 {[%clk 0:00:00.6]} 40.
h5 {[%clk 0:01:11.8]} 40... Rc5+ {[%clk 0:00:00.8]} 41. Kf4 {[%clk 0:01:12.2]}
41... Ra5 {[%clk 0:00:01.6]} 42. e5 {[%clk 0:01:09.9]} 42... Ra4+ {[%clk
0:00:02]} 43. Kg5 {[%clk 0:01:09.9]} 43... Ra1 {[%clk 0:00:02.9]} 44. e6 {[%clk
0:01:07.7]} 44... Rg1+ {[%clk 0:00:02.8]} 45. Kf4 {[%clk 0:01:08.2]} 45... g5+
{[%clk 0:00:02.7]} 46. hxg6 {[%clk 0:01:06]} 46... Kg7 {[%clk 0:00:03.3]} 47.
f6+ {[%clk 0:01:04.1]} 47... Kxf6 {[%clk 0:00:03.4]} 48. f8=Q+ {[%clk
0:01:04.5]} 1-0

[Event "Late-Titled-Tuesday-Blitz-April-30-2024"]
[Site "Chess.com"]
[Date "2024.04.30"]
[Round "6"]
[White "DominguezOnYoutube"]
[Black "penguingm1"]
[Result "1-0"]
[WhiteElo "2958"]
[BlackElo "2870"]
[TimeControl "180+1"]
[EndTime "15:06:30 PDT"]
[Termination "DominguezOnYoutube won by resignation"]

1. e4 {[%clk 0:03:00.9]} 1... e5 {[%clk 0:03:00.4]} 2. Nf3 {[%clk 0:03:01.2]}
2... Nc6 {[%clk 0:03:00.9]} 3. Bc4 {[%clk 0:03:00.7]} 3... Nf6 {[%clk
0:03:01.2]} 4. d3 {[%clk 0:03:00.8]} 4... h6 {[%clk 0:03:01.4]} 5. O-O {[%clk
0:02:59.3]} 5... d6 {[%clk 0:03:01.4]} 6. c3 {[%clk 0:02:58.4]} 6... g6 {[%clk
0:03:00.3]} 7. Re1 {[%clk 0:02:55.4]} 7... Bg7 {[%clk 0:03:00.5]} 8. d4 {[%clk
0:02:55.2]} 8... O-O {[%clk 0:02:53.4]} 9. dxe5 {[%clk 0:02:29.9]} 9... Nxe5
{[%clk 0:02:49.8]} 10. Nxe5 {[%clk 0:02:29.4]} 10... dxe5 {[%clk 0:02:50.7]} 11.
Qxd8 {[%clk 0:02:23.4]} 11... Rxd8 {[%clk 0:02:51.6]} 12. f3 {[%clk 0:02:23]}
12... a5 {[%clk 0:01:59.6]} 13. a4 {[%clk 0:02:22]} 13... Ne8 {[%clk 0:01:37.7]}
14. Be3 {[%clk 0:02:21]} 14... Nd6 {[%clk 0:01:37.9]} 15. Bb3 {[%clk 0:02:21.2]}
15... b6 {[%clk 0:01:34.9]} 16. Na3 {[%clk 0:02:07.7]} 16... Bb7 {[%clk
0:01:27.9]} 17. Rad1 {[%clk 0:02:06.1]} 17... Kf8 {[%clk 0:01:26.9]} 18. Bd5
{[%clk 0:02:03.4]} 18... Bxd5 {[%clk 0:01:08.2]} 19. Rxd5 {[%clk 0:02:04.3]}
19... Ke7 {[%clk 0:01:08.6]} 20. Red1 {[%clk 0:02:01]} 20... f5 {[%clk
0:00:48.1]} 21. exf5 {[%clk 0:01:58.8]} 21... gxf5 {[%clk 0:00:35.2]} 22. f4
{[%clk 0:01:58.5]} 22... e4 {[%clk 0:00:29]} 23. Kf2 {[%clk 0:01:58.2]} 23...
Nb7 {[%clk 0:00:27.1]} 24. h3 {[%clk 0:01:17.6]} 24... Ke6 {[%clk 0:00:23.5]}
25. Nb5 {[%clk 0:01:13.6]} 25... Rac8 {[%clk 0:00:03.6]} 26. Nxc7+ {[%clk
0:00:56.6]} 26... Rxc7 {[%clk 0:00:04]} 27. Rxd8 {[%clk 0:00:57.2]} 27... Nxd8
{[%clk 0:00:04.9]} 28. Rxd8 {[%clk 0:00:57.1]} 28... Rb7 {[%clk 0:00:05.8]} 29.
Ra8 {[%clk 0:00:46]} 29... b5 {[%clk 0:00:05.9]} 30. Ra6+ {[%clk 0:00:40.1]}
30... Kf7 {[%clk 0:00:03.4]} 31. Rxa5 {[%clk 0:00:21.1]} 31... bxa4 {[%clk
0:00:03.3]} 32. Bc1 {[%clk 0:00:21.7]} 32... Bf8 {[%clk 0:00:01.5]} 33. Rxf5+
{[%clk 0:00:21.2]} 33... Ke6 {[%clk 0:00:01.9]} 34. Rxf8 {[%clk 0:00:20.9]} 1-0

[Event "Late-Titled-Tuesday-Blitz-April-30-2024"]
[Site "Chess.com"]
[Date "2024.04.30"]
[Round "6"]
[White "NajdorfPlayerc5"]
[Black "Oleg_Papayan"]
[Result "1-0"]
[WhiteElo "2492"]
[BlackElo "2636"]
[TimeControl "180+1"]
[EndTime "15:06:31 PDT"]
[Termination "NajdorfPlayerc5 won by resignation"]

1. d4 {[%clk 0:03:00.9]} 1... d5 {[%clk 0:02:57.9]} 2. c4 {[%clk 0:03:00.4]}
2... e6 {[%clk 0:02:57.4]} 3. Nc3 {[%clk 0:02:57.9]} 3... Nf6 {[%clk 0:02:57.2]}
4. cxd5 {[%clk 0:02:54.7]} 4... exd5 {[%clk 0:02:57.5]} 5. Bg5 {[%clk
0:02:53.6]} 5... Be7 {[%clk 0:02:56]} 6. e3 {[%clk 0:02:52.4]} 6... O-O {[%clk
0:02:55.5]} 7. Bd3 {[%clk 0:02:50.4]} 7... Re8 {[%clk 0:02:50.7]} 8. Nge2 {[%clk
0:02:50.3]} 8... h6 {[%clk 0:02:49.3]} 9. Bh4 {[%clk 0:02:49.9]} 9... Ne4 {[%clk
0:02:46.5]} 10. Bxe7 {[%clk 0:02:45.2]} 10... Rxe7 {[%clk 0:02:47.4]} 11. O-O
{[%clk 0:02:30.3]} 11... Nxc3 {[%clk 0:02:47.4]} 12. Nxc3 {[%clk 0:02:30]} 12...
c6 {[%clk 0:02:48.3]} 13. Qd2 {[%clk 0:02:23.8]} 13... Bg4 {[%clk 0:02:43.4]}
14. f3 {[%clk 0:02:23.5]} 14... Bh5 {[%clk 0:02:42.2]} 15. Rae1 {[%clk
0:02:22.3]} 15... Bg6 {[%clk 0:02:38.8]} 16. Bxg6 {[%clk 0:02:21.7]} 16... fxg6
{[%clk 0:02:39.7]} 17. e4 {[%clk 0:02:21.4]} 17... dxe4 {[%clk 0:02:16.9]} 18.
fxe4 {[%clk 0:02:22.3]} 18... Nd7 {[%clk 0:02:17.6]} 19. e5 {[%clk 0:02:10.8]}
19... Nxe5 {[%clk 0:02:13.1]} 20. Qe3 {[%clk 0:02:06.2]} 20... Nf3+ {[%clk
0:01:46.4]} 21. Qxf3 {[%clk 0:02:06]} 21... Qxd4+ {[%clk 0:01:47.1]} 22. Qf2
{[%clk 0:01:55.7]} 22... Qb4 {[%clk 0:01:22.4]} 23. a3 {[%clk 0:01:39.3]} 23...
Qd6 {[%clk 0:01:18.2]} 24. Rxe7 {[%clk 0:01:30.7]} 24... Qxe7 {[%clk 0:01:18.5]}
25. Re1 {[%clk 0:01:29.4]} 25... Qd7 {[%clk 0:01:09.1]} 26. Qe3 {[%clk
0:01:25.4]} 26... Rd8 {[%clk 0:01:02.3]} 27. Qe6+ {[%clk 0:01:21]} 27... Qxe6
{[%clk 0:01:02.9]} 28. Rxe6 {[%clk 0:01:21.8]} 28... Rd2 {[%clk 0:01:03.2]} 29.
Re2 {[%clk 0:01:20.2]} 29... Rd3 {[%clk 0:01:03.8]} 30. Kf2 {[%clk 0:01:19.1]}
30... Kf7 {[%clk 0:01:04.2]} 31. Ne4 {[%clk 0:01:12.1]} 31... b6 {[%clk
0:01:00.6]} 32. Rd2 {[%clk 0:01:11.9]} 32... Rb3 {[%clk 0:01:00.4]} 33. Nc3
{[%clk 0:01:04]} 33... Ke6 {[%clk 0:00:59]} 34. Ke3 {[%clk 0:01:02.3]} 34... c5
{[%clk 0:00:51.3]} 35. Kd3 {[%clk 0:01:00.8]} 35... b5 {[%clk 0:00:48]} 36. Kc2
{[%clk 0:00:52.8]} 36... c4 {[%clk 0:00:48.2]} 37. Re2+ {[%clk 0:00:48.1]} 37...
Kf7 {[%clk 0:00:42.6]} 38. Re5 {[%clk 0:00:43.6]} 38... a6 {[%clk 0:00:38]} 39.
Rc5 {[%clk 0:00:40.4]} 39... g5 {[%clk 0:00:36]} 40. Rc6 {[%clk 0:00:37.7]}
40... a5 {[%clk 0:00:36.5]} 41. Rc5 {[%clk 0:00:36]} 41... b4 {[%clk 0:00:36.5]}
42. Rxc4 {[%clk 0:00:29.7]} 42... a4 {[%clk 0:00:26.6]} 43. Rxb4 {[%clk
0:00:25]} 1-0

[Event "Late-Titled-Tuesday-Blitz-April-30-2024"]
[Site "Chess.com"]
[Date "2024.04.30"]
[Round "6"]
[White "UK_23"]
[Black "JaackCamel"]
[Result "0-1"]
[WhiteElo "2455"]
[BlackElo "2285"]
[TimeControl "180+1"]
[EndTime "15:06:31 PDT"]
[Termination "JaackCamel won by checkmate"]

1. e4 {[%clk 0:02:52.7]} 1... e6 {[%clk 0:02:49.4]} 2. d4 {[%clk 0:02:48.4]}
2... d5 {[%clk 0:02:49]} 3. e5 {[%clk 0:02:46.3]} 3... c5 {[%clk 0:02:48.4]} 4.
c3 {[%clk 0:02:45.6]} 4... Nc6 {[%clk 0:02:48.1]} 5. Nf3 {[%clk 0:02:45.9]} 5...
Qb6 {[%clk 0:02:47.1]} 6. Be2 {[%clk 0:02:43.2]} 6... cxd4 {[%clk 0:02:46.4]} 7.
cxd4 {[%clk 0:02:42.1]} 7... Nh6 {[%clk 0:02:46.1]} 8. Bd3 {[%clk 0:02:18.1]}
8... Nf5 {[%clk 0:02:28.5]} 9. Bxf5 {[%clk 0:02:15.6]} 9... exf5 {[%clk
0:02:28.1]} 10. Nc3 {[%clk 0:02:15.1]} 10... Be6 {[%clk 0:02:26.3]} 11. O-O
{[%clk 0:02:13.9]} 11... Be7 {[%clk 0:02:21.4]} 12. h4 {[%clk 0:02:11.7]} 12...
O-O {[%clk 0:02:18]} 13. Ne2 {[%clk 0:02:10.9]} 13... Rac8 {[%clk 0:02:10.2]}
14. a3 {[%clk 0:02:06.7]} 14... Na5 {[%clk 0:02:09.3]} 15. b4 {[%clk 0:02:04.4]}
15... Nc4 {[%clk 0:02:08.4]} 16. Nf4 {[%clk 0:02:01.7]} 16... a5 {[%clk
0:02:06.7]} 17. Rb1 {[%clk 0:01:30.3]} 17... axb4 {[%clk 0:01:59.2]} 18. axb4
{[%clk 0:01:31.2]} 18... Ra8 {[%clk 0:01:58.9]} 19. Nd3 {[%clk 0:01:28.3]} 19...
Ra2 {[%clk 0:01:45.9]} 20. Bg5 {[%clk 0:01:23.4]} 20... Qc7 {[%clk 0:01:31.9]}
21. g3 {[%clk 0:01:11]} 21... Rfa8 {[%clk 0:01:30.6]} 22. Nf4 {[%clk 0:00:57]}
22... h6 {[%clk 0:01:25.5]} 23. Bxe7 {[%clk 0:00:56.4]} 23... Qxe7 {[%clk
0:01:25.4]} 24. h5 {[%clk 0:00:56.1]} 24... R8a3 {[%clk 0:01:16.4]} 25. Ne1
{[%clk 0:00:35.2]} 25... Qg5 {[%clk 0:01:12.1]} 26. Ned3 {[%clk 0:00:34]} 26...
Ne3 {[%clk 0:01:03.5]} 27. Qf3 {[%clk 0:00:26.2]} 27... Nxf1 {[%clk 0:01:01.5]}
28. Rxf1 {[%clk 0:00:27.1]} 28... Qg4 {[%clk 0:00:58.6]} 29. Qxg4 {[%clk
0:00:23.5]} 29... fxg4 {[%clk 0:00:58.3]} 30. Rc1 {[%clk 0:00:24.4]} 30... Bf5
{[%clk 0:00:54]} 31. Nc5 {[%clk 0:00:21.6]} 31... b6 {[%clk 0:00:49.9]} 32. Nb7
{[%clk 0:00:19]} 32... Be4 {[%clk 0:00:46.5]} 33. Nd6 {[%clk 0:00:16]} 33... Ra1
{[%clk 0:00:46.5]} 34. Rf1 {[%clk 0:00:16.2]} 34... Rxf1+ {[%clk 0:00:44.1]} 35.
Kxf1 {[%clk 0:00:17.1]} 35... Bf3 {[%clk 0:00:44.1]} 36. Ke1 {[%clk 0:00:12.9]}
36... Rb3 {[%clk 0:00:38.9]} 37. b5 {[%clk 0:00:12.3]} 37... Rb4 {[%clk
0:00:35.7]} 38. e6 {[%clk 0:00:11.1]} 38... Rxd4 {[%clk 0:00:32.3]} 39. e7
{[%clk 0:00:09.6]} 39... Rd1# {[%clk 0:00:32.1]} 0-1

[Event "Late-Titled-Tuesday-Blitz-April-30-2024"]
[Site "Chess.com"]
[Date "2024.04.30"]
[Round "6"]
[White "rhungaski"]
[Black "ExchangeAB"]
[Result "0-1"]
[WhiteElo "2557"]
[BlackElo "2463"]
[TimeControl "180+1"]
[EndTime "15:06:33 PDT"]
[Termination "ExchangeAB won by resignation"]

1. e4 {[%clk 0:03:00.9]} 1... c6 {[%clk 0:02:59.7]} 2. d4 {[%clk 0:02:59.2]}
2... d5 {[%clk 0:03:00.6]} 3. e5 {[%clk 0:02:59.2]} 3... Bf5 {[%clk 0:03:00.4]}
4. g4 {[%clk 0:02:58.8]} 4... Be4 {[%clk 0:03:00.3]} 5. f3 {[%clk 0:02:58.8]}
5... Bg6 {[%clk 0:03:00.9]} 6. e6 {[%clk 0:02:58.5]} 6... fxe6 {[%clk
0:02:53.7]} 7. h4 {[%clk 0:02:57.9]} 7... Qd6 {[%clk 0:02:53.7]} 8. h5 {[%clk
0:02:45.8]} 8... Qg3+ {[%clk 0:02:52.4]} 9. Ke2 {[%clk 0:02:38.8]} 9... Bf7
{[%clk 0:02:42.9]} 10. Qe1 {[%clk 0:02:33.9]} 10... Qxe1+ {[%clk 0:02:39.7]} 11.
Kxe1 {[%clk 0:02:34.8]} 11... Nf6 {[%clk 0:02:17.3]} 12. Bf4 {[%clk 0:02:13.3]}
12... Nfd7 {[%clk 0:02:05.8]} 13. Nc3 {[%clk 0:01:41]} 13... a6 {[%clk
0:01:58.9]} 14. Na4 {[%clk 0:01:12.3]} 14... b5 {[%clk 0:01:56.5]} 15. Nc3
{[%clk 0:00:57.5]} 15... c5 {[%clk 0:01:54.9]} 16. dxc5 {[%clk 0:00:57.7]} 16...
e5 {[%clk 0:01:50.7]} 17. Bg3 {[%clk 0:00:57.3]} 17... Nc6 {[%clk 0:01:46.9]}
18. Rd1 {[%clk 0:00:49]} 18... e6 {[%clk 0:01:44.8]} 19. Nh3 {[%clk 0:00:25]}
19... Bxc5 {[%clk 0:01:42.3]} 20. Ng5 {[%clk 0:00:25]} 20... h6 {[%clk
0:01:38.8]} 21. Nxf7 {[%clk 0:00:24.7]} 21... Kxf7 {[%clk 0:01:39.5]} 22. g5
{[%clk 0:00:20.3]} 22... hxg5 {[%clk 0:01:37.9]} 23. Nxd5 {[%clk 0:00:20.9]}
23... exd5 {[%clk 0:01:36.5]} 24. Rxd5 {[%clk 0:00:21.8]} 24... Rad8 {[%clk
0:01:01.7]} 25. Bh3 {[%clk 0:00:21.9]} 25... Ncb8 {[%clk 0:00:43.9]} 26. Bf5
{[%clk 0:00:19.6]} 26... Bb6 {[%clk 0:00:40.1]} 27. Ke2 {[%clk 0:00:18.3]} 27...
Nf8 {[%clk 0:00:23.7]} 28. Rxe5 {[%clk 0:00:14.9]} 28... Bc7 {[%clk 0:00:18.6]}
29. Bg6+ {[%clk 0:00:14]} 29... Nxg6 {[%clk 0:00:18.4]} 30. hxg6+ {[%clk
0:00:14.9]} 30... Kxg6 {[%clk 0:00:13.2]} 31. Rxh8 {[%clk 0:00:14.7]} 31... Rxh8
{[%clk 0:00:11.7]} 32. Re6+ {[%clk 0:00:14.4]} 32... Kf7 {[%clk 0:00:09.4]} 0-1

[Event "Late-Titled-Tuesday-Blitz-April-30-2024"]
[Site "Chess.com"]
[Date "2024.04.30"]
[Round "6"]
[White "pirulillo"]
[Black "Mackster23"]
[Result "0-1"]
[WhiteElo "2336"]
[BlackElo "2608"]
[TimeControl "180+1"]
[EndTime "15:06:36 PDT"]
[Termination "Mackster23 won by resignation"]

1. e4 {[%clk 0:03:00.4]} 1... c5 {[%clk 0:02:59.4]} 2. Nf3 {[%clk 0:02:59.7]}
2... d6 {[%clk 0:02:59.6]} 3. d4 {[%clk 0:02:59.6]} 3... cxd4 {[%clk 0:03:00.5]}
4. Nxd4 {[%clk 0:03:00.2]} 4... Nf6 {[%clk 0:03:01.1]} 5. Nc3 {[%clk 0:03:00.8]}
5... a6 {[%clk 0:03:01.8]} 6. Be2 {[%clk 0:03:01]} 6... e5 {[%clk 0:03:01.2]} 7.
Nb3 {[%clk 0:03:01.5]} 7... Be7 {[%clk 0:03:01.2]} 8. Be3 {[%clk 0:03:02]} 8...
Be6 {[%clk 0:03:01.2]} 9. Nd5 {[%clk 0:03:02.1]} 9... Nxd5 {[%clk 0:02:58.2]}
10. exd5 {[%clk 0:03:03]} 10... Bf5 {[%clk 0:02:58]} 11. Qd2 {[%clk 0:03:02.7]}
11... O-O {[%clk 0:02:55.7]} 12. O-O {[%clk 0:02:57.2]} 12... Nd7 {[%clk
0:02:53]} 13. Na5 {[%clk 0:02:56.6]} 13... Qc7 {[%clk 0:02:48.5]} 14. c4 {[%clk
0:02:56.3]} 14... Bg6 {[%clk 0:02:45.1]} 15. b4 {[%clk 0:02:54.1]} 15... f5
{[%clk 0:02:43.7]} 16. f4 {[%clk 0:02:54]} 16... Bf6 {[%clk 0:02:40.3]} 17. Rac1
{[%clk 0:02:53.1]} 17... b6 {[%clk 0:02:24.5]} 18. Nb3 {[%clk 0:02:46.6]} 18...
Rfe8 {[%clk 0:02:11]} 19. Bd3 {[%clk 0:02:32.4]} 19... Qb7 {[%clk 0:02:05.4]}
20. fxe5 {[%clk 0:02:26.6]} 20... Nxe5 {[%clk 0:01:35.7]} 21. Bxf5 {[%clk
0:02:24]} 21... Bxf5 {[%clk 0:01:35.5]} 22. Rxf5 {[%clk 0:02:24.9]} 22... Rac8
{[%clk 0:01:35.5]} 23. c5 {[%clk 0:02:11.5]} 23... bxc5 {[%clk 0:01:20.4]} 24.
bxc5 {[%clk 0:02:12.4]} 24... Qd7 {[%clk 0:01:17.8]} 25. Rff1 {[%clk 0:01:49.7]}
25... dxc5 {[%clk 0:01:01.9]} 26. Nxc5 {[%clk 0:01:47.1]} 26... Qb5 {[%clk
0:00:58.9]} 27. d6 {[%clk 0:01:41]} 27... Rcd8 {[%clk 0:00:49.4]} 28. Qd5+
{[%clk 0:01:27.1]} 28... Nf7 {[%clk 0:00:45.4]} 29. d7 {[%clk 0:01:21.7]} 29...
Rxe3 {[%clk 0:00:43.6]} 30. Rb1 {[%clk 0:01:00.3]} 30... Re5 {[%clk 0:00:28.5]}
31. Rfe1 {[%clk 0:00:22]} 31... Qxb1 {[%clk 0:00:17.7]} 32. Qxe5 {[%clk
0:00:14.9]} 32... Bxe5 {[%clk 0:00:13.6]} 33. Rxb1 {[%clk 0:00:14.9]} 33... Bd4+
{[%clk 0:00:13.6]} 34. Kf1 {[%clk 0:00:13.6]} 34... Bxc5 {[%clk 0:00:14.5]} 0-1

[Event "Late-Titled-Tuesday-Blitz-April-30-2024"]
[Site "Chess.com"]
[Date "2024.04.30"]
[Round "6"]
[White "1800_strength"]
[Black "JonasEilenberg"]
[Result "1-0"]
[WhiteElo "2803"]
[BlackElo "2561"]
[TimeControl "180+1"]
[EndTime "15:06:37 PDT"]
[Termination "1800_strength won by resignation"]

1. g4 {[%clk 0:03:00.9]} 1... d5 {[%clk 0:02:59.3]} 2. Bg2 {[%clk 0:03:00.9]}
2... Bxg4 {[%clk 0:02:47]} 3. c4 {[%clk 0:02:58.9]} 3... d4 {[%clk 0:02:47.6]}
4. Bxb7 {[%clk 0:02:57.8]} 4... Nd7 {[%clk 0:02:48.2]} 5. Bf3 {[%clk 0:02:58.5]}
5... Bxf3 {[%clk 0:02:46.5]} 6. Nxf3 {[%clk 0:02:59.4]} 6... e5 {[%clk
0:02:47.1]} 7. d3 {[%clk 0:03:00.1]} 7... Ngf6 {[%clk 0:02:46.3]} 8. Nbd2 {[%clk
0:03:00.4]} 8... Bd6 {[%clk 0:02:46]} 9. Qa4 {[%clk 0:02:56]} 9... O-O {[%clk
0:02:44.7]} 10. Qc6 {[%clk 0:02:44.1]} 10... Rb8 {[%clk 0:02:42]} 11. Ng5 {[%clk
0:02:39.1]} 11... Nc5 {[%clk 0:02:28.9]} 12. Nge4 {[%clk 0:02:32]} 12... Rb6
{[%clk 0:02:15.5]} 13. Nxf6+ {[%clk 0:02:32.1]} 13... Qxf6 {[%clk 0:02:16.4]}
14. Qf3 {[%clk 0:02:31.3]} 14... Qe6 {[%clk 0:02:14.9]} 15. b3 {[%clk
0:02:19.5]} 15... f5 {[%clk 0:02:11.9]} 16. Qd5 {[%clk 0:02:17.9]} 16... Qxd5
{[%clk 0:01:52.3]} 17. cxd5 {[%clk 0:02:18.8]} 17... Na6 {[%clk 0:01:52.9]} 18.
a3 {[%clk 0:02:00.1]} 18... Rb5 {[%clk 0:01:52.7]} 19. b4 {[%clk 0:01:53.7]}
19... Rxd5 {[%clk 0:01:50.3]} 20. Nc4 {[%clk 0:01:53.5]} 20... e4 {[%clk
0:01:30.3]} 21. Bb2 {[%clk 0:01:42.4]} 21... exd3 {[%clk 0:01:13.4]} 22. exd3
{[%clk 0:01:43.3]} 22... Re8+ {[%clk 0:01:13.4]} 23. Kf1 {[%clk 0:01:43.5]}
23... Nb8 {[%clk 0:01:03.3]} 24. Na5 {[%clk 0:01:40.7]} 24... g6 {[%clk
0:00:44.1]} 25. Rc1 {[%clk 0:01:32.5]} 25... c5 {[%clk 0:00:28]} 26. b5 {[%clk
0:01:29.7]} 26... Bc7 {[%clk 0:00:27.5]} 27. Nb3 {[%clk 0:01:25.5]} 27... Nd7
{[%clk 0:00:27.2]} 28. a4 {[%clk 0:01:22.2]} 28... Rde5 {[%clk 0:00:27.1]} 29.
Bxd4 {[%clk 0:01:19.5]} 29... Rd5 {[%clk 0:00:19.5]} 30. Be3 {[%clk 0:01:00.8]}
30... Rxd3 {[%clk 0:00:17.4]} 31. Nxc5 {[%clk 0:01:01.5]} 31... Nxc5 {[%clk
0:00:17]} 32. Bxc5 {[%clk 0:01:01.6]} 32... Bf4 {[%clk 0:00:16.8]} 33. Rc4
{[%clk 0:00:58.6]} 33... Bh6 {[%clk 0:00:08.3]} 34. Bxa7 {[%clk 0:00:56]} 34...
Ra3 {[%clk 0:00:08.6]} 35. Kg2 {[%clk 0:00:54.2]} 35... Ra2 {[%clk 0:00:09]} 36.
Rb1 {[%clk 0:00:49.5]} 36... Ree2 {[%clk 0:00:06]} 37. Rd1 {[%clk 0:00:46.3]}
37... Kf7 {[%clk 0:00:06.5]} 38. Rd7+ {[%clk 0:00:37.8]} 38... Kf6 {[%clk
0:00:06.9]} 39. h4 {[%clk 0:00:30.8]} 39... Bd2 {[%clk 0:00:02.8]} 40. Rc6+
{[%clk 0:00:30.2]} 40... Ke5 {[%clk 0:00:03]} 41. Re7+ {[%clk 0:00:30.8]} 1-0

[Event "Late-Titled-Tuesday-Blitz-April-30-2024"]
[Site "Chess.com"]
[Date "2024.04.30"]
[Round "6"]
[White "manitodeplomo"]
[Black "zverr1"]
[Result "1-0"]
[WhiteElo "2617"]
[BlackElo "2473"]
[TimeControl "180+1"]
[EndTime "15:06:38 PDT"]
[Termination "manitodeplomo won on time"]

1. d4 {[%clk 0:03:00.9]} 1... Nf6 {[%clk 0:02:56.3]} 2. c4 {[%clk 0:03:00.4]}
2... g6 {[%clk 0:02:56]} 3. Nc3 {[%clk 0:03:00.1]} 3... Bg7 {[%clk 0:02:53.2]}
4. e4 {[%clk 0:02:59.8]} 4... d6 {[%clk 0:02:51.1]} 5. Be2 {[%clk 0:03:00.2]}
5... O-O {[%clk 0:02:50.7]} 6. Nf3 {[%clk 0:03:00.7]} 6... e5 {[%clk 0:02:50.6]}
7. d5 {[%clk 0:02:59.8]} 7... a5 {[%clk 0:02:50.8]} 8. Bg5 {[%clk 0:02:58.9]}
8... h6 {[%clk 0:02:51.3]} 9. Bh4 {[%clk 0:02:58.6]} 9... Qe8 {[%clk 0:02:51.7]}
10. Nd2 {[%clk 0:02:55.4]} 10... Na6 {[%clk 0:02:51.8]} 11. O-O {[%clk
0:02:52.8]} 11... Bd7 {[%clk 0:02:49.5]} 12. b3 {[%clk 0:02:52.3]} 12... Nh7
{[%clk 0:02:44.2]} 13. a3 {[%clk 0:02:50.6]} 13... f5 {[%clk 0:02:37.5]} 14. f3
{[%clk 0:02:49.8]} 14... Bf6 {[%clk 0:02:38.2]} 15. Bf2 {[%clk 0:02:47.4]} 15...
Bg5 {[%clk 0:02:36.9]} 16. Rb1 {[%clk 0:02:46.7]} 16... Nc5 {[%clk 0:02:32.1]}
17. Qc2 {[%clk 0:02:43.5]} 17... a4 {[%clk 0:02:19.9]} 18. b4 {[%clk 0:02:42]}
18... Bxd2 {[%clk 0:02:07.4]} 19. Qxd2 {[%clk 0:02:39.8]} 19... Nb3 {[%clk
0:02:04.9]} 20. Qxh6 {[%clk 0:02:38]} 20... f4 {[%clk 0:01:56.1]} 21. Rbd1
{[%clk 0:01:51.2]} 21... g5 {[%clk 0:01:49]} 22. g4 {[%clk 0:01:48]} 22... Rf6
{[%clk 0:01:30.8]} 23. Qh3 {[%clk 0:01:46.6]} 23... Nf8 {[%clk 0:01:28.7]} 24.
Kh1 {[%clk 0:01:33.2]} 24... Kg7 {[%clk 0:01:25.2]} 25. Rg1 {[%clk 0:01:28.5]}
25... Rh6 {[%clk 0:01:25.1]} 26. Qg2 {[%clk 0:01:28]} 26... Ng6 {[%clk 0:01:26]}
27. h3 {[%clk 0:01:25.2]} 27... Qe7 {[%clk 0:01:21]} 28. Bf1 {[%clk 0:01:24.1]}
28... Rah8 {[%clk 0:01:19.4]} 29. Kh2 {[%clk 0:01:21.3]} 29... Rxh3+ {[%clk
0:01:13.4]} 30. Qxh3 {[%clk 0:01:22.2]} 30... Rxh3+ {[%clk 0:01:13.4]} 31. Bxh3
{[%clk 0:01:23.1]} 31... Nd4 {[%clk 0:01:03.6]} 32. Bxd4 {[%clk 0:01:11.3]}
32... exd4 {[%clk 0:01:03]} 33. Ne2 {[%clk 0:01:12.2]} 33... Ne5 {[%clk
0:00:51.5]} 34. Nxd4 {[%clk 0:01:11.5]} 34... Nxc4 {[%clk 0:00:51.7]} 35. Rd3
{[%clk 0:01:08.8]} 35... Ne5 {[%clk 0:00:46.6]} 36. Rc3 {[%clk 0:01:08.3]} 36...
c5 {[%clk 0:00:47.2]} 37. dxc6 {[%clk 0:01:07.7]} 37... bxc6 {[%clk 0:00:48.1]}
38. Rgc1 {[%clk 0:01:06.3]} 38... c5 {[%clk 0:00:42.7]} 39. bxc5 {[%clk
0:01:03.8]} 39... dxc5 {[%clk 0:00:43.6]} 40. Rxc5 {[%clk 0:01:03.4]} 40... Nd3
{[%clk 0:00:44.3]} 41. Rc7 {[%clk 0:00:59.8]} 41... Qe8 {[%clk 0:00:10.6]} 42.
Rb1 {[%clk 0:00:50.2]} 42... Ne5 {[%clk 0:00:07.4]} 43. Rbb7 {[%clk 0:00:50.3]}
43... Qf8 {[%clk 0:00:05]} 44. Ne6+ {[%clk 0:00:48.2]} 1-0